Cogmind - Beta 15 *** ADVENTURER MODE // 2025.07.12 @ 04:07:47 Player: vincent Result: Self-destructed Performance ------------- Evolutions (1) 500 Regions Visited (2) 400 Robots Destroyed (17) 85 Value Destroyed (412) 412 Prototype IDs (0) 0 Alien Tech Used (0) 0 Bonus (0) 0 TOTAL SCORE: 1397 Bonus ------- None Cogmind --------- Core Integrity 360/400 Matter 300/300 Energy 98/100 System Corruption 0% Temperature Cool (0) Movement Core (400) Ox7 Location -9/Materials Parts ------- > --- POWER (1) -------- (None) > --- PROPULSION (2) --- (None) > --- UTILITY (4) ------ Improved Heat Sink Large Storage Unit Core Shielding > --- WEAPON (2) ------- Small Laser Light Assault Rifle > --- INVENTORY (15) --- (None) Peak State ------------ > --- POWER ------------ Light Ion Engine > --- PROPULSION ------- Light Treads Light Treads > --- UTILITY ---------- Improved Heat Sink Small Storage Unit Seismic Detector Core Shielding > --- WEAPON ----------- Assault Rifle Light Assault Rifle > --- INVENTORY -------- Light Ion Engine [Rating: 11] Favorites ----------- Power Light Ion Engine Engine Light Ion Engine Propulsion Light Treads Treads Light Treads Utility Seismic Detector Device Seismic Detector Storage Large Storage Unit Protection Core Shielding Weapon Light Assault Rifle Energy Gun Small Laser Ballistic Gun Light Assault Rifle Build | -11 -10 -9 ------- Run | Yrd Mat Mat Slots Evolved 2 | . . 2 Power . | . . . Propulsion . | . . . Utility 2 | . . 2 Weapon . | . . . Parts Attached 12 | 6 2 4 Power 2 | 1 . 1 Engine 2 | 1 . 1 Core . | . . . Reactor . | . . . Propulsion 2 | 2 . . Treads 2 | 2 . . Leg . | . . . Wheel . | . . . Hover . | . . . Flight . | . . . Utility 5 | 1 2 2 Device 2 | . 1 1 Storage 2 | 1 . 1 Processor . | . . . Hackware . | . . . Protection 1 | . 1 . Artifact . | . . . Weapon 3 | 2 . 1 Energy Gun 1 | . . 1 Energy Cannon . | . . . Ballistic Gun 2 | 2 . . Ballistic Cannon . | . . . Launcher . | . . . Special Weapon . | . . . Impact Weapon . | . . . Slashing Weapon . | . . . Piercing Weapon . | . . . Special Melee Weapon . | . . . Unidentified Prototypes . | . . . Parts Lost 6 | . . 6 Power 2 | . . 2 Propulsion 2 | . . 2 Utility 1 | . . 1 Weapon 1 | . . 1 Highest Loss Streak 5 | . . 5 To Critical Strikes . | . . . Average Backups 1 | 1 1 . Power . | . 1 . Propulsion . | . . . Utility . | . . . Weapon . | . . . Tool/Special . | . . . Unused Backups 1 | 1 . . Power . | . . . Propulsion 1 | 1 . . Utility . | . . . Weapon . | . . . Tool/Special . | . . . Average Slot Usage (%) 97 | . 98 96 Engine 11 | . 14 10 Treads 23 | . 28 20 Device 17 | . 12 21 Storage 10 | . 9 11 Protection 8 | . 4 11 Ballistic Gun 23 | . 28 20 Peak Build Rating 11 | 6 7 11 Average Rating 8 | 4 6 10 On Entrance 4 | . 6 7 Naked Turns . | . . . Heaviest Build 29 | 11 12 29 Greatest Support 40 | 40 40 40 Greatest Overweight (x) 9 | . . 9 Average Overweight (x) . | . . . Largest Inventory Capacity 15 | 8 8 15 Average Capacity 10 | 5 7 13 Most Carried 5 | 2 3 5 Average Carried 1 | 1 1 . Final Capacity 15 | 8 5 15 Final Carried 3 | 1 3 . Class Distribution -------------------- 100% | Mutant Dominant Class ---------------- Mutant | -10/Materials Mutant | -9/Materials Resources | -11 -10 -9 ----------- Run | Yrd Mat Mat Matter Collected 622 | 254 106 262 Remotely . | . . . Salvage Created 526 | . 153 373 Parts 34 | . 11 23 Haulers Intercepted . | . . . Recyclers Shooed . | . . . Parts Field Recycled . | . . . Retrieved Matter . | . . . Parts Self-Destructed . | . . . Prevented . | . . . Kills | -11 -10 -9 ------- Run | Yrd Mat Mat Combat Hostiles Destroyed 14 | . 5 9 Guns 14 | . 5 9 Classes Destroyed 4 | . 3 1 Worker 2 | . . 2 Watcher 1 | . 1 . Swarmer 6 | . 3 3 Grunt 8 | . 2 6 Best Kill Streak 3 | . 3 3 Combat Bots Only 3 | . 3 3 Max Kills in Single Turn 1 | . 1 1 Gunslinging . | . . . Exploded . | . . . Melee . | . . . Uniques/NPCs Destroyed . | . . . Combat | -11 -10 -9 -------- Run | Yrd Mat Mat Hostile Shots Fired 101 | . 30 71 Missed 24 | . 11 13 Hits 77 | . 19 58 Projectile 77 | . 19 58 Critical Strikes 1 | . 1 . Damage Taken 690 | . 143 547 Core 64 | . 24 40 Absorbed by Shields . | . . . Redirected to Shielding 6 | . . 6 Ignored by Resistances 211 | . 44 167 Core Remaining (%) 95 | 100 90 . Volleys Fired 79 | . 35 44 Largest 2 | . 2 2 Hottest 60 | . 40 60 Shots Fired 158 | . 70 88 Gun 158 | . 70 88 Cannon . | . . . Launcher . | . . . Special . | . . . Kinetic 143 | . 70 73 Thermal 15 | . . 15 Explosive . | . . . Electromagnetic . | . . . Robot Hit Streak 31 | . 10 31 Robot Miss Streak 3 | . 3 2 Penetration Max . | . . . Secondary Targets 5 | . 2 3 Max Gunslinging Chain 1 | . 1 1 Shots Hit Robots 109 | . 33 76 Core Hits 36 | . 11 25 Critical Kills . | . . . Critical Parts Destroyed . | . . . Critical Strikes . | . . . Melee Attacks . | . . . Impact . | . . . Slashing . | . . . Piercing . | . . . Sneak Attacks . | . . . Combat Hostiles . | . . . Follow-up Attacks . | . . . Damage Inflicted 1081 | . 325 756 Guns 1081 | . 325 756 Cannons . | . . . Explosions . | . . . Melee . | . . . Ramming . | . . . Kinetic 936 | . 325 611 Thermal 145 | . . 145 Explosive . | . . . Electromagnetic . | . . . Impact . | . . . Slashing . | . . . Piercing . | . . . Highest Corruption . | . . . Average Corruption . | . . . Corruption Purged . | . . . Corruption Blocked . | . . . Overload Shots . | . . . Overflow Damage . | . . . Projectiles . | . . . Explosions . | . . . Melee . | . . . Knockbacks . | . . . Impact . | . . . Kinetic . | . . . Secondary . | . . . Self-Inflicted Damage . | . . . Shots . | . . . Rammed . | . . . Targets Rammed . | . . . Kicked . | . . . Crushed . | . . . Highest Temperature 25 | . 25 2 Average Temperature 7 | . 11 1 Received Heat Transfer 435 | . 63 372 Siege Activations . | . . . Martial Activations . | . . . Shielding Activations . | . . . Robots Disrupted . | . . . Combat Hostiles . | . . . Robots Corrupted . | . . . Combat Hostiles . | . . . Parts Fried . | . . . Impact Corruptions . | . . . Robots Melted . | . . . Combat Hostiles . | . . . Parts Melted . | . . . Heat Transferred 325 | . . 325 Parts Sabotaged . | . . . Parts Stolen . | . . . Parts Stripped . | . . . Power Chain Reactions . | . . . Alert | -11 -10 -9 ------- Run | Yrd Mat Mat Maximum Alert Level . | . . . Low Security (%) 100 | 100 100 100 Level 1 . | . . . Level 2 . | . . . Level 3 . | . . . Level 4 . | . . . Level 5 . | . . . High Security . | . . . Max Security . | . . . Peak Influence 79 | . 79 60 Initial . | . . . Average 14 | . 19 14 Influence Increases 384 | . 136 248 Destroy 0b10 Robot/C 280 | . 100 180 Destroy 0b10 Robot/NC 15 | . 5 10 Destroy Leader 62 | . 22 40 Successful Hack 3 | . . 3 Disable Machine 9 | . 9 . Lose Combat Pursuer 15 | . . 15 Influence Decreases 364 | . 136 228 Time Decay 314 | . 136 178 Lost Part 50 | . . 50 Squads Dispatched 1 | . . 1 Investigation . | . . . Extermination . | . . . Reinforcement 1 | . . 1 Assault . | . . . Garrison . | . . . Intercept . | . . . Searches Triggered . | . . . Construction Impeded . | . . . Haulers Reinforced . | . . . Active Scanning Responses . | . . . Cargo Convoy Interrupts . | . . . Stealth | -11 -10 -9 --------- Run | Yrd Mat Mat Distress Signals 3 | . 2 1 Communications Jammed . | . . . Distress Signals . | . . . Times Spotted 26 | . 12 14 Peak Tracking Total 5 | . 4 5 Tactical Retreats 1 | . . 1 Traps | -11 -10 -9 ------- Run | Yrd Mat Mat Traps Triggered 2 | . . 2 Indirectly . | . . . Trap Hack Attempts . | . . . Triggered . | . . . Disarmed . | . . . Reprogrammed . | . . . Reused . | . . . Traps Extracted . | . . . Installed . | . . . Triggered . | . . . Machines | -11 -10 -9 ---------- Run | Yrd Mat Mat Machines Disabled 1 | . 1 . Max in Single Turn 1 | . 1 . Machines Repaired . | . . . Machines Dismantled . | . . . Machines Sabotaged . | . . . Overloaded Fab Kills . | . . . Hacking | -11 -10 -9 --------- Run | Yrd Mat Mat Machines Accessed 2 | . 1 1 Terminals 2 | . 1 1 Fabricators . | . . . Repair Stations . | . . . Recycling Units . | . . . Scanalyzers . | . . . Garrison Access . | . . . Total Hacks 5 | . 1 4 Successful 4 | . . 4 Failed 1 | . 1 . Catastrophic 1 | . 1 . Database Lockouts . | . . . Manual . | . . . Terminals 5 | . 1 4 Fabricators . | . . . Repair Stations . | . . . Recycling Units . | . . . Scanalyzers . | . . . Garrison Access . | . . . Terminal Hacks 4 | . . 4 Record 3 | . . 3 Dispatch Records 1 | . . 1 Fabricator Hacks . | . . . Repair Station Hacks . | . . . Recycling Unit Hacks . | . . . Scanalyzer . | . . . Garrison Access Hacks . | . . . Unauthorized Hacks . | . . . Terminals . | . . . Fabricators . | . . . Repair Stations . | . . . Recycling Units . | . . . Scanalyzers . | . . . Garrison Access . | . . . Data Cores Recovered . | . . . Used . | . . . Hacking Detections 2 | . 1 1 Full Trace Events . | . . . Feedback Events . | . . . Feedback Blocked . | . . . Robot Schematics Acquired . | . . . Robots Built . | . . . Authchips . | . . . Time . | . . . Total Robot Build Rating . | . . . Part Schematics Acquired . | . . . Parts Built . | . . . Authchips . | . . . Time . | . . . Total Part Build Rating . | . . . Parts Repaired . | . . . Time . | . . . Parts Recycled . | . . . Recycled Matter . | . . . Retrieved Matter . | . . . Retrieved Components . | . . . Parts Scanalyzed . | . . . Part Schematics Acquired . | . . . Parts Damaged . | . . . Bothacking | -11 -10 -9 ------------ Run | Yrd Mat Mat Used RIF Installer . | . . . Robots Hacked . | . . . Non-combat . | . . . Combat . | . . . Robot Hacks Applied . | . . . Relay Couplers Released . | . . . Fabnet Peak Effective % . | . . . Robots Rewired . | . . . Allies Hacked . | . . . Hacks Repelled . | . . . Allies | -11 -10 -9 -------- Run | Yrd Mat Mat Total Allies . | . . . Largest Group . | . . . Highest-Rated Group . | . . . Highest-Rated Ally . | . . . Total Orders . | . . . Ally Attacks . | . . . Total Damage . | . . . Kills . | . . . Allies Corrupted . | . . . Allies Melted . | . . . Intel | -11 -10 -9 ------- Run | Yrd Mat Mat Active Infowar (turns) 1038 | . 396 642 Seismic 1038 | . 396 642 Robot Analysis Total . | . . . Derelict Logs Recovered . | . . . Drone Launches . | . . . Drone Recoveries . | . . . Exploration | -11 -10 -9 ------------- Run | Yrd Mat Mat Turns Passed 1223 | 147 433 643 Spaces Moved 500 | 60 201 239 Core 9 | 8 . 1 Treads 491 | 52 201 238 Legs . | . . . Wheels . | . . . Hover . | . . . Flight . | . . . Fastest Speed 50 | 50 160 160 Average Speed 159 | 145 160 163 Slowest Speed 500 | 160 160 500 Overloaded Moves . | . . . Propulsion Burnouts . | . . . Robots Hopped . | . . . Potential Cave-ins . | . . . Cave-ins Triggered . | . . . Exploration Rate (%) 17 | 5 31 16 Regions Visited 2 Branch Regions . Pre-discovered Areas . | . . . Known Exits Taken . | . . . Unknown Exits Taken 2 | 1 1 . Scrap Searched . | . . . Spaces Dug . | . . . Terrain Destroyed . | . . . Melee . | . . . Projectile . | . . . AOE . | . . . Terrain Rammed . | . . . Walls Destroyed . | . . . Machines Disabled . | . . . Actions | -11 -10 -9 --------- Run | Yrd Mat Mat Total 781 | 120 249 412 Wait 168 | 46 9 113 Move 498 | 59 200 239 Hop . | . . . Pick Up 17 | 8 3 6 Fast Attach . | . . . Attach 15 | 6 1 8 Detach . | . . . Swap 2 | . 1 1 Drop 2 | 1 . 1 Fire 79 | . 35 44 Melee . | . . . Ram . | . . . Kick . | . . . Crush . | . . . Escape Stasis . | . . . Rewire . | . . . Trap . | . . . Miscellaneous . | . . . Route ------- -11/Scrapyard -10/Materials -9/Materials History --------- Turn | Location | Event 2 | -11/Scrapyard | Met Revision 17 5 | -11/Scrapyard | Discovered new exit (range 15) 148 | -11/Scrapyard | Entered Materials 301 | -10/Materials | Build established: Mutant 562 | -10/Materials | Discovered new exit (range 10) 581 | -10/Materials | Entered another Materials area 581 | -9/Materials | Evolved 2 slots: Utility x2 1224 | -9/Materials | Self-destructed Last Messages --------------- Acquired 14 matter. Acquired 103 matter. Acquired Sml. Laser. Assault Rifle destroyed. Lgt. Treads destroyed. G-47 Trooper destroyed. Switching to secondary target: G-34 Mercenary. K-01 Serf collects debris. G-34 Mercenary destroyed. K-01 Serf collects debris. K-01 Serf destroyed. Switching to secondary target: G-34 Mercenary. K-01 Serf collects debris. Lgt. Treads destroyed. Acquired 10 matter. K-01 Serf collects debris. Acquired 1 matter. Lgt. Ion Engine destroyed. Acquired 1 matter. Seismic Detector destroyed. Map ----- +----------------------------------------------------+ | ?????????????????????????????????????????????????? | | ?????????????????????????????????????????????????? | | ?????????????????????????????????????????????????? | | ?????????????????????????????????????????????????? | | ?????????????????????????????????????????????????? | | ?????????????????????????????????????????????????? | | ?????????????????????????????????????????????????? | | ?????????????????????????????????????????????????? | | ?????????????????????????????????????????????????? | | ?????????????????????????????????????????????????? | | ?????????????????????????????????????????????????? | | ?????????????????????????????????????????????????? | | ?????????????????????????????????????????????????? | | ?????????????????????????"???????????????????????? | | ?????????????????????????"???????????????????????? | | ????????????????????????? ???????????????????????? | | ????????????????????????? ???????????????????????? | | ????????????????????????#+##+#???????????????????? | | ????????????????????????# #???????????????????? | | ??????????#########+#####u #???????????????????? | | ????????? #???????????????????? | | ????????? != ####????????????????? | | ????????? [=! +????????????? | | ????????????????#########g#####+#????????????????? | | ????????????????????????#*# ???????????????????? | | ????????????????????????#@# ""???????????????????? | | ????????????????????????#=# "T???????????????????? | | ????????????????????????#%# ???????????????????? | | ????????????????????????#g##+###########?????????? | | ????????????????????????#=% ## #?????????? | | ????????????????????????#!! ## """"" #?????????? | | ????????????????????????# ## """"" #?????????? | | ????????????????????????# ## """"" #?????????? | | ????????????????????????# ## """"" #?????????? | | ????????????????????????# ## """"" #?######### | | ????????????????????????# ## """"" #?# | | ????????????????????????# ## """"" #?# """ | | ????????????????????????#^^ ## #?# """ | | ????????????????????????# ######+####?# """ | | ????????????????????????# [ [ #???# | | ????????????????????????########## #???# | | ?????????????????????????????????# #???# | | ?????????????????????????????????# #???# "T" | | ?????????????????????????????????# #???# | | ?????????????????????????????##### #???#####+### | | ?????????????????????????????#== #?????# # | | ?????????????????????????????#== ####### # | | ?????????????????????????????#!! ## ## T # | | ?????????????????????????????#!! ## " ## # | | ?????????????????????????????#!! ## T ## # | +----------------------------------------------------+ Best States ------------- Heat Dissipation 42 Energy Generation 10 Energy Capacity 125 Matter Stores 300 Matter Capacity 300 Sight Range 16 Terrain Scan Density 10 Resistance: KI 20 Resistance: TH 20 Resistance: EX 20 Resistance: EM 20 Resistance: I 20 Resistance: S 20 Resistance: P 20 Core Shielding 20 Evasion (%) 40 Recoil Reduction 2 Offensive Hacking 10 Item Schematics ----------------- None Robot Schematics ------------------ None Fabricated ------------ Nothing Repaired ---------- Nothing Alien Tech Used ----------------- None Achievements -------------- None Challenges ------------ None Game ------ Seed ArmorChainHarness Manual? 0 Play Time 00:18:29 Cumulative 11.8 hours Start 2025.07.12 @ 03:50:02 End 2025.07.12 @ 04:07:47 Sessions 1 Manual Loads 0 Difficulty Adventurer Special Mode None Game No. 4 Rogue 0 Adventurer 4 Explorer 0 Win Type - Total 0 Types 0/0/0/0/0/0/0/0/0/0 Lore% 5 Gallery% 15 Achievement% 19 Wizard Run 0 Options --------- Layout 1 ASCII 0 Keyboard 0 Movement Mouse Keybinds 0 Fullscreen 1 Font 24/Smallcaps Map View 50x35 Zoom Use 0% Tactical HUD 0 Map Filters NONE Filters NONE Steam 1 RUN: 6685a3c3-fa85-4937-bc2a-23e3831b8416